bitfinex/quotes_ETHUSD_20240716
["timestamp","ask_amount","ask_price","bid_price","bid_amount"]
[1721149240960,3.0,3471.9,3470.8,2.685]
[1721149241450,5.88029,3471.9,3470.8,2.685]
[1721149241650,0.02758198,3471.8,3470.8,2.685]
[1721149241957,0.02758198,3471.8,3470.9,0.803978]
[1721149242889,0.02758198,3471.8,3470.7,2.4735]
[1721149243095,2.88052,3471.6,3470.7,2.4735]
[1721149243489,2.88051,3471.6,3470.4,2.4262]
[1721149243815,0.02747862,3471.5,3470.5,2.88136]
[1721149244020,0.02747862,3471.5,3470.6,0.799256]
[1721149244216,3.0,3471.9,3470.6,0.799256]
[1721149244217,2.88047,3471.7,3470.6,0.799256]
[1721149244382,0.02745373,3471.4,3470.4,2.4262]
[1721149244578,2.88068,3471.4,3470.4,2.4262]
[1721149244816,2.88057,3471.6,3470.4,2.4262]
[1721149244985,0.02742883,3471.3,3470.4,2.4262]
[1721149245306,0.02742883,3471.2,3470.4,2.4262]
[1721149245503,2.8806,3471.5,3470.5,0.799287]
[1721149245713,0.02742883,3471.1,3470.5,0.799287]
[1721149246009,2.88068,3471.4,3470.5,0.799287]
[1721149246223,0.02742883,3471.0,3470.5,0.799287]
[1721149246377,2.88068,3471.4,3470.5,0.799287]
[1721149246580,2.88068,3471.4,3470.3,2.685]
[1721149246581,0.02742883,3470.9,3470.3,2.685]
[1721149246899,0.02742883,3470.9,3470.0,2.88182]
[1721149246900,5.88076,3471.3,3470.0,5.30812]
[1721149247091,0.02744032,3470.8,3470.0,2.4263]
[1721149247431,2.88118,3470.8,3470.0,2.4263]
[1721149247634,6.19681258,3470.7,3469.5,2.685]
[1721149247785,6.19681258,3470.7,3469.5,5.56725]
[1721149247984,6.19681258,3470.7,3469.5,2.685]
[1721149248179,6.19681258,3470.7,3469.4,2.4263]
[1721149248180,2.88151,3470.4,3469.4,2.4263]
[1721149248428,2.88182,3470.1,3469.4,2.4263]
[1721149248631,3.170002,3470.1,3468.9,2.4263]
[1721149248932,2.90887681,3470.0,3468.9,2.4263]
[1721149249081,2.88193,3469.9,3468.9,2.4263]
[1721149249282,2.90885338,3469.9,3468.9,2.4263]
[1721149249521,3.0,3469.8,3469.1,5.56758]
[1721149249688,2.2882,3470.6,3469.6,2.685]
[1721149249689,3.0,3470.5,3469.6,2.685]
[1721149250022,0.02682186,3469.7,3468.9,2.4263]
[1721149250257,0.02682186,3469.7,3467.6,0.22843712]
[1721149250258,2.88195,3469.9,3468.4,5.1079]
[1721149250403,2.88219,3469.6,3468.4,5.1079]
[1721149250917,0.02677779,3469.5,3468.4,5.1079]
[1721149251097,3.90589157,3469.5,3468.4,5.47757866]
[1721149251434,3.02677779,3469.5,3468.5,0.05765172]
[1721149251719,2.2882,3470.6,3469.2,5.56744]
[1721149251720,2.88143,3470.5,3469.2,5.56744]
[1721149252026,0.02668389,3469.4,3469.3,2.88242]
[1721149252240,3.0,3470.4,3469.4,2.88226]
[1721149252402,2.88121,3470.8,3469.7,2.685]
[1721149252600,0.02652676,3470.3,3469.7,2.685]
[1721149252804,3.0,3470.9,3469.7,5.56708]
[1721149253000,0.02652676,3470.2,3469.7,5.56708]
[1721149253204,3.0,3471.0,3469.8,0.84493]
[1721149253404,5.88102,3471.0,3469.7,5.56708]
[1721149253699,5.88102,3471.0,3469.5,2.88222]
[1721149253700,0.02655552,3470.9,3469.5,2.88222]
[1721149253914,2.88126,3470.7,3469.3,5.977942]
[1721149254146,2.88163,3470.3,3469.3,2.4325]
[1721149254329,0.288163,3470.2,3469.3,2.4325]
[1721149254534,3.288163,3470.2,3469.3,2.4325]
[1721149254689,0.02655552,3470.1,3469.3,2.4325]
[1721149255039,0.02655552,3470.1,3468.9,2.685]
[1721149255188,0.02655552,3470.1,3468.5,5.64481997]
[1721149255189,0.57655552,3470.1,3468.5,8.32981997]
[1721149255387,0.57655552,3470.1,3468.6,1.89527486]
[1721149255388,2.88203,3469.8,3468.6,1.89527486]
[1721149255615,3.0,3469.7,3468.6,1.89527486]
[1721149255832,3.02655552,3469.7,3468.6,1.89527486]
[1721149256136,3.02655552,3469.7,3468.6,4.77826486]
[1721149256334,3.02655552,3469.7,3468.9,5.56775]
[1721149256335,0.02655552,3469.7,3468.9,5.56775]
[1721149256652,3.0,3470.0,3469.0,0.556775]
[1721149256837,0.02655552,3469.6,3468.5,2.76235411]
[1721149256995,3.0,3469.8,3468.5,2.4633]
[1721149257191,0.02655552,3469.5,3468.5,5.34631]
[1721149257391,5.88202,3469.8,3468.5,5.34631]
[1721149257623,0.02655552,3469.4,3468.6,0.803131]
[1721149257829,6.758421,3469.8,3468.6,0.803131]
[1721149258040,0.02655552,3469.3,3468.6,0.803131]
[1721149258333,0.02648269,3469.2,3468.9,2.88272]
[1721149258533,7.35,3470.5,3468.9,2.88272]
[1721149258534,3.0,3470.3,3469.4,2.88231]
[1721149258738,5.36119,3470.8,3469.2,2.2876]
[1721149258739,2.88127,3470.7,3469.6,2.685]
[1721149258954,2.48,3470.8,3469.6,2.685]
[1721149259242,2.8812,3470.8,3469.6,2.685]
[1721149259391,2.3871,3471.3,3469.6,2.685]
[1721149259593,1.0025168,3471.2,3469.7,0.6084241]
[1721149259836,2.88067,3471.5,3470.2,2.2876]
[1721149259993,2.88086,3471.2,3470.2,2.2876]
[1721149260194,2.88128,3470.7,3469.7,0.6084241]
[1721149260401,2.88128,3470.7,3469.6,2.2876]
[1721149261330,2.88079,3471.3,3469.7,2.88203]
[1721149261544,2.88098,3471.1,3469.7,2.88203]
[1721149261757,2.88079,3471.3,3469.9,2.88192]
[1721149261905,2.88052,3471.6,3470.1,2.88175]
[1721149262110,0.526742,3471.8,3470.0,0.934895]
[1721149262111,0.526742,3471.8,3470.3,2.88158]
[1721149262314,0.526742,3471.8,3470.5,2.88134]
[1721149262548,2.88044,3471.7,3470.5,2.88134]
[1721149262708,0.526742,3471.8,3470.4,2.3698]
[1721149262909,0.3407032,3471.7,3470.5,0.59548]
[1721149263154,2.422,3472.4,3470.7,2.88119]
[1721149263155,2.88018,3472.0,3470.7,2.88119]
[1721149263654,2.88016,3472.1,3470.7,2.88119]
[1721149264142,2.88019,3472.0,3470.7,2.88119]
[1721149264345,2.88036,3471.8,3470.4,2.3698]
[1721149264644,2.88058,3471.6,3470.4,2.3698]
[1721149264805,0.876094,3471.5,3470.5,5.762]
[1721149265011,3.876094,3471.5,3470.5,5.762]
[1721149265312,3.0,3471.7,3470.5,8.6434]
[1721149265847,3.0,3471.7,3470.7,2.8812]
[1721149266053,3.0,3471.9,3470.8,5.7624]
[1721149266275,3.0,3471.9,3470.8,8.64357]
[1721149266424,5.88028,3471.9,3470.8,5.7624]
[1721149266825,3.0,3471.9,3470.8,8.64356]
[1721149267167,2.422,3472.4,3470.8,8.64356]
[1721149267168,2.88015,3472.1,3470.8,8.64356]
[1721149267349,5.88019,3472.0,3470.8,8.64356]
[1721149267671,3.0,3472.0,3470.8,5.7624]
[1721149267822,2.87977,3472.5,3471.1,2.88084]
[1721149268170,2.87977,3472.5,3471.3,2.455]
[1721149269040,2.87987,3472.4,3471.3,2.455]
[1721149269468,3.02668006,3472.3,3471.3,2.455]
[1721149269769,3.02668006,3472.3,3471.2,5.7617]
[1721149269770,2.88013,3472.1,3471.2,5.7617]
[1721149270073,3.0,3472.0,3471.2,5.7617]
[1721149270373,3.0,3472.0,3471.3,0.05760864]
[1721149270374,0.02668006,3472.0,3471.3,0.05760864]
[1721149270530,2.8797,3472.6,3471.4,2.88068]
[1721149270733,0.02668006,3471.9,3471.4,4.033009]
[1721149271029,2.87963,3472.7,3471.5,0.05760449]
[1721149271346,2.87977,3472.5,3471.3,2.88074]
[1721149271541,2.87977,3472.5,3471.4,5.7614]
[1721149272039,0.02668006,3472.4,3471.4,8.64207]
[1721149272225,0.02668006,3472.4,3471.5,0.864207]
[1721149272429,2.87963,3472.7,3471.6,5.761]
[1721149272430,5.87978,3472.5,3471.6,5.761]
[1721149272655,0.02668006,3472.3,3471.6,5.761]
[1721149272856,3.0,3472.5,3471.6,5.761]
[1721149273084,0.02668006,3472.2,3471.6,5.761]
[1721149273286,5.87977,3472.5,3471.6,5.761]
[1721149273451,0.02668006,3472.1,3471.6,5.761]
[1721149273653,0.587977,3472.4,3471.6,5.761]
[1721149274183,0.02668006,3472.3,3471.6,5.761]
[1721149275539,2.90663006,3472.3,3471.6,5.761]
[1721149275741,3.0,3472.2,3471.6,5.761]
[1721149275938,0.94946071,3472.1,3471.6,5.761]
[1721149276241,3.82962071,3472.1,3471.6,5.761]
[1721149276444,3.02668006,3472.0,3471.6,5.761]
[1721149276700,0.02668006,3472.0,3471.6,5.761]
[1721149278439,3.02668006,3472.0,3471.6,5.761]
[1721149278640,0.69761408,3471.9,3471.6,5.761]
[1721149278967,0.02693666,3471.8,3471.6,5.761]
[1721149279280,2.88014,3472.1,3471.6,5.761]
[1721149279575,3.0,3472.0,3471.6,5.761]
[1721149279777,0.3,3471.9,3471.6,5.761]
[1721149280378,0.02693666,3471.8,3471.6,5.761]
[1721149281461,2.87979,3472.5,3471.6,5.761]
[1721149281462,5.87987,3472.4,3471.6,5.761]
[1721149281713,0.02693666,3471.7,3471.6,5.761]
[1721149281873,2.87993,3472.3,3471.6,5.761]
[1721149282087,3.875972,3472.2,3471.6,5.761]
[1721149282279,3.90290866,3472.2,3471.6,5.761]
[1721149283701,0.90290866,3472.2,3471.6,5.761]
[1721149284061,0.02693666,3472.2,3471.6,5.761]
[1721149284465,3.0,3472.4,3471.6,5.761]
[1721149284700,0.02693666,3472.1,3471.6,5.761]
[1721149284879,3.0,3472.4,3471.6,5.761]
[1721149285509,0.02693666,3472.3,3471.6,5.761]
[1721149285814,0.59067667,3472.2,3471.6,5.761]
[1721149285966,5.88002,3472.2,3471.6,5.761]
[1721149286475,0.02693666,3472.1,3471.6,5.761]
[1721149286663,2.90704666,3472.1,3471.6,5.761]
[1721149286868,3.0,3472.0,3471.6,5.761]
[1721149287106,0.89070467,3471.9,3471.6,5.761]
[1721149287523,0.02693666,3471.8,3471.6,5.761]
[1721149290010,2.87964,3472.7,3471.6,5.761]
[1721149290011,0.02727001,3471.7,3471.6,5.761]
[1721149290216,3.0,3472.6,3471.6,5.761]
[1721149290391,0.02727001,3472.5,3471.6,5.761]
[1721149290579,0.02727001,3472.5,3471.7,2.4404]
[1721149290781,0.02727001,3472.5,3471.8,0.05760253]
[1721149291006,0.02727001,3472.5,3472.1,2.442]
[1721149291206,2.87912,3473.3,3472.2,8.732626]
[1721149291417,0.02644758,3473.2,3472.3,0.05759256]
[1721149291824,0.02644758,3473.2,3472.2,8.732626]
[1721149291825,2.90563758,3473.2,3472.2,8.732626]
[1721149292118,0.02644758,3473.2,3472.3,0.0575926]
[1721149292331,0.02644758,3473.2,3472.2,8.2004]
[1721149292947,0.02644758,3473.2,3472.4,2.87984]
[1721149293136,2.87877,3473.7,3472.5,5.7595]
[1721149293447,0.02654137,3473.6,3472.5,5.7595]
[1721149293592,0.29053114,3473.5,3472.5,5.7595]
[1721149294026,0.02654137,3473.4,3472.5,5.7595]
[1721149294231,0.02654137,3473.4,3472.6,0.05758677]
[1721149294526,0.02654137,3473.4,3472.7,2.4631]
[1721149294694,3.0,3473.8,3472.7,2.4631]
[1721149294886,0.02654137,3473.3,3472.7,2.4631]
[1721149295202,0.02654137,3473.2,3472.7,2.4631]
[1721149295390,3.0,3473.5,3472.7,2.4631]
[1721149295608,0.02654137,3473.4,3472.7,2.4631]
[1721149296040,3.0,3473.6,3472.7,2.4631]
[1721149296241,3.0,3473.6,3472.8,5.759]
[1721149296242,0.02654137,3473.3,3472.8,5.759]
[1721149296456,3.0,3473.6,3472.8,5.759]
[1721149296654,0.02654137,3473.2,3472.8,5.759]
[1721149296810,5.87861,3473.9,3472.8,8.63852]
[1721149297134,0.61440237,3473.8,3472.8,8.63852]
[1721149298736,0.61440237,3473.8,3472.9,2.87942]
[1721149299351,0.61440237,3473.8,3472.8,8.63851]
[1721149299544,0.61440237,3473.8,3472.8,5.759]
[1721149299725,0.64929324,3473.7,3472.8,5.759]
[1721149299929,0.02678437,3473.6,3472.8,5.759]
[1721149300329,3.0,3473.8,3472.8,5.759]
[1721149300541,0.02678437,3473.7,3472.8,5.759]
[1721149302059,2.90556437,3473.7,3472.8,5.759]
[1721149302213,3.87842344,3473.6,3472.8,5.759]
[1721149302415,2.90587979,3473.5,3472.8,5.759]
[1721149302647,2.87903,3473.4,3472.8,5.759]
[1721149302811,3.0,3473.3,3472.8,5.759]
[1721149303010,0.02689535,3473.2,3472.8,5.759]
[1721149303217,0.87848754,3473.2,3472.8,5.759]
[1721149303410,0.02689535,3473.1,3472.8,5.759]
[1721149304648,5.87895,3473.5,3472.8,5.759]
[1721149304850,0.02594935,3473.0,3472.8,5.759]
[1721149305049,3.0,3473.4,3472.8,5.759]
[1721149305251,0.02592832,3472.9,3472.8,5.759]
[1721149305455,3.0,3473.4,3472.8,5.759]
[1721149305627,0.02592832,3472.9,3472.8,5.759]
[1721149305832,3.0,3473.5,3472.8,5.759]
[1721149306041,0.02592832,3472.9,3472.8,5.759]
[1721149306246,3.0,3473.5,3472.8,5.759]
[1721149306553,3.466938,3473.4,3472.8,5.759]
[1721149306849,2.87929,3473.1,3472.8,5.759]
[1721149307050,3.0,3473.0,3472.8,5.759]
[1721149307418,0.02592832,3472.9,3472.8,5.759]
[1721149307850,5.87921,3473.2,3472.8,5.759]
[1721149308063,0.02592832,3472.9,3472.8,5.759]
[1721149308220,0.9346158,3473.1,3472.8,5.759]
[1721149308423,0.02592832,3473.0,3472.8,5.759]
[1721149311159,0.587888,3473.4,3472.8,5.759]
[1721149311322,0.02592832,3473.3,3472.8,5.759]
[1721149311524,3.0,3473.5,3472.8,5.759]
[1721149311846,0.02592832,3473.4,3472.8,5.759]
[1721149316168,2.87923,3473.2,3472.8,5.759]
[1721149316325,0.02591872,3473.1,3472.8,5.759]
[1721149316531,3.02591872,3473.1,3472.8,5.759]
[1721149317031,3.0,3473.0,3472.8,5.759]
[1721149317231,3.0,3473.4,3472.9,2.3319]
[1721149317444,0.02591872,3473.3,3472.9,2.3319]
[1721149318864,2.90501872,3473.3,3472.8,5.759]
[1721149319034,3.0,3473.2,3472.8,5.759]
[1721149319247,5.87919,3473.2,3472.8,5.759]
[1721149319430,2.87943,3472.9,3472.8,5.759]
[1721149319744,9.30886,3472.9,3472.8,5.759]
[1721149319944,9.33477872,3472.9,3472.8,5.759]
[1721149322374,12.21420872,3472.9,3472.8,5.759]
[1721149322831,20.59743872,3472.9,3472.8,5.759]
[1721149323033,24.36906013,3472.9,3472.8,2.19519972]
[1721149323264,24.36906013,3472.9,3472.8,9.72e-06]
[1721149323265,21.40244437,3472.9,3472.8,9.72e-06]
[1721149323439,2.88049,3471.7,3470.9,2.2546]
[1721149323639,3.0,3471.6,3470.9,2.2546]
[1721149323859,0.02591872,3471.5,3470.9,2.2546]
[1721149324366,2.90653872,3471.5,3470.9,2.2546]
[1721149324569,3.0,3471.4,3470.9,2.2546]
[1721149324770,0.02564492,3471.3,3470.9,2.48006]
[1721149324971,2.4668,3472.6,3471.2,2.2546]
[1721149324972,2.87994,3472.3,3471.2,2.2546]
[1721149325174,3.02564492,3472.2,3471.2,2.2546]
[1721149325472,5.90569492,3472.2,3471.2,2.2546]
[1721149325670,2.88039,3471.8,3471.2,2.2546]
[1721149325879,2.88054,3471.6,3471.2,2.2546]
[1721149326373,3.02564492,3471.5,3470.8,2.4681]
[1721149326768,2.88086,3471.2,3470.8,2.4681]
[1721149326948,3.02556172,3471.1,3470.2,2.4681]
[1721149327351,3.52658017,3471.1,3470.2,2.4681]
[1721149327670,3.02557325,3471.0,3470.2,2.4681]
[1721149328878,3.02557325,3471.0,3470.4,2.88149]
[1721149329063,0.02557325,3471.0,3470.4,2.88149]
[1721149329375,5.8806,3471.5,3470.4,2.88149]
[1721149329683,0.02543755,3471.4,3470.5,1.067311]
[1721149329863,0.02543755,3471.4,3470.3,2.442]
[1721149329864,2.88085,3471.2,3470.3,2.442]
[1721149330179,3.0,3471.1,3470.3,2.442]
[1721149330335,5.88085,3471.2,3470.3,2.442]
[1721149330535,6.812008,3471.2,3470.2,2.4681]
[1721149330772,0.02541955,3471.1,3470.2,2.4681]
[1721149330981,2.90634955,3471.1,3470.2,2.4681]
[1721149331183,5.88106,3471.0,3470.2,2.4681]
[1721149331357,2.88109,3470.9,3470.2,2.4681]
[1721149331542,6.19470855,3470.8,3469.6,2.495]
[1721149331746,2.88142,3470.6,3469.6,2.495]
[1721149331963,5.88148,3470.5,3469.6,2.495]
[1721149332165,0.02541955,3470.4,3469.6,2.495]
[1721149332364,0.02541955,3470.4,3468.9,2.495]
[1721149332365,2.88186,3470.0,3468.9,2.495]
[1721149332678,0.57541955,3470.4,3468.9,2.495]
[1721149332679,2.88216,3469.7,3468.9,2.495]
[1721149332888,2.88219,3469.6,3468.9,2.495]
[1721149333173,0.02541955,3469.5,3468.9,2.495]
[1721149333335,0.02541955,3469.5,3468.2,2.495]
[1721149333542,2.88234,3469.4,3468.2,2.495]
[1721149333876,0.02528912,3469.3,3468.3,0.537841]
[1721149334066,3.02528912,3469.3,3468.3,0.537841]
[1721149335042,3.02528912,3469.3,3468.6,2.88293]
[1721149335043,0.02528912,3469.3,3468.6,2.88293]
[1721149335244,3.0,3469.5,3468.3,6.98316204]
[1721149335483,3.0,3469.5,3468.4,2.88316]
[1721149335641,3.0,3469.5,3468.3,0.83793204]
[1721149335849,3.0,3469.5,3468.2,5.37833]
[1721149335850,2.88226,3469.5,3468.2,5.37833]
[1721149336186,3.0,3469.4,3468.2,2.495]
[1721149336482,3.0,3469.4,3468.3,2.88324]
[1721149337283,3.0,3469.4,3468.6,2.88299]
[1721149337489,5.88201,3469.8,3468.6,2.88299]
[1721149337697,5.88201,3469.8,3468.3,0.30013219]
[1721149337698,2.4059,3469.6,3468.3,0.30013219]
[1721149337997,0.55,3469.5,3468.2,2.495]
[1721149338292,0.55,3469.5,3467.0,2.88427]
[1721149338293,2.88299,3468.7,3467.5,2.2949]
[1721149338579,2.88302,3468.6,3467.5,2.2949]
[1721149338784,2.88285,3468.8,3467.5,2.2949]
[1721149338960,3.0,3468.7,3467.5,5.17881]
[1721149339148,3.0,3468.7,3467.6,0.517881]
[1721149339781,5.88292,3468.7,3467.6,0.517881]
[1721149340288,3.0,3468.7,3467.6,3.401641]
[1721149340443,3.0,3468.8,3467.9,2.88358]
[1721149340661,0.3,3468.8,3467.6,3.401681]
[1721149340904,3.0,3468.9,3467.7,2.88373]
[1721149341699,5.88276,3468.9,3467.7,2.88373]
[1721149341904,2.88276,3468.9,3467.6,0.517881]
[1721149342087,5.88284,3468.8,3467.6,3.401641]
[1721149342290,5.88284,3468.8,3467.6,0.517881]
[1721149342495,0.588284,3468.7,3467.6,0.517881]
[1721149342670,2.88301,3468.6,3467.5,5.17881]
[1721149343007,3.0,3468.8,3467.5,5.17881]
[1721149343008,5.88289,3468.8,3467.5,5.17881]
[1721149343364,2.88292,3468.7,3467.5,5.17881]
[1721149344902,3.0,3468.8,3467.9,2.88358]
[1721149345089,3.759407,3468.8,3467.5,2.2949]
[1721149345288,5.88293,3468.7,3467.5,2.2949]
[1721149345480,3.0,3468.6,3467.5,2.2949]
[1721149345677,3.0,3468.6,3467.5,5.1788]
[1721149345884,5.883,3468.6,3467.5,2.2949]
[1721149346099,0.5883,3468.5,3467.5,2.2949]
[1721149346404,2.88326,3468.3,3467.5,2.2949]
[1721149346907,3.0,3468.2,3467.5,2.2949]
[1721149347605,3.0,3468.3,3467.5,2.2949]
[1721149348599,2.88334,3468.2,3467.5,2.2949]
[1721149348802,0.588334,3468.1,3467.5,2.2949]
[1721149348979,3.0,3468.4,3467.5,2.2949]
[1721149349284,10.23214,3469.7,3468.2,2.3825]
[1721149349483,2.4821,3469.9,3468.4,2.88314]
[1721149349484,5.36403,3469.9,3468.4,2.88314]
[1721149349667,7.35,3470.7,3468.8,2.8828]
[1721149349668,2.88176,3470.1,3468.8,2.8828]
[1721149349880,0.536386,3470.0,3468.9,2.3825]
[1721149350107,3.418226,3470.0,3468.9,2.3825]
[1721149350308,2.88193,3469.9,3468.9,2.3825]
[1721149351222,0.536386,3470.0,3468.9,2.3825]
[1721149351421,2.88125,3470.8,3468.9,2.3825]
[1721149351422,2.88106,3471.0,3469.0,0.05764114]
[1721149351707,2.88119,3470.8,3469.6,2.88215]
[1721149352303,12.7621,3472.0,3469.7,3.31963407]
[1721149352505,5.4121,3472.0,3469.7,3.262]
[1721149353082,2.88086,3471.2,3470.0,2.88178]
[1721149353282,2.88077,3471.3,3470.1,2.88174]
[1721149353524,2.88077,3471.3,3470.2,2.3505]
[1721149353525,3.456901,3471.3,3470.2,2.3505]
[1721149354018,2.88084,3471.2,3470.2,2.3505]
[1721149354197,0.576131,3471.3,3470.3,0.0576262]
[1721149354369,2.88068,3471.4,3470.2,5.23216]
[1721149354912,3.0,3471.3,3470.2,5.23216]
[1721149356021,3.0,3471.3,3470.3,2.88158]
[1721149356213,3.0,3471.5,3470.3,2.88158]
[1721149356516,2.88069,3471.4,3470.2,2.3505]
[1721149356682,0.87612,3471.3,3470.3,0.05762425]
[1721149356877,3.0,3471.3,3470.3,0.05762425]
[1721149357078,3.0,3471.3,3470.2,5.8130262]
[1721149357278,5.88068,3471.4,3470.2,5.8130262]
[1721149358912,3.0,3471.4,3470.2,5.8130262]
[1721149359118,3.0,3471.5,3470.4,2.8815]
[1721149359329,0.588044,3471.5,3470.4,2.8815]
[1721149360984,0.588044,3471.5,3470.2,2.9313562]
[1721149360985,3.468664,3471.5,3470.2,2.9313562]
[1721149361181,3.0,3471.4,3470.2,2.9313562]
[1721149361619,2.88077,3471.3,3470.2,5.8130162]
[1721149361844,3.0,3471.2,3470.2,5.8130162]
[1721149363530,3.6468814,3471.2,3470.2,2.9313562]
[1721149364801,0.6468814,3471.2,3470.2,2.9313562]
[1721149365001,0.6468814,3471.2,3470.2,2.3505]
[1721149365198,3.6468814,3471.2,3470.2,2.3505]
[1721149366437,3.6468814,3471.2,3470.2,5.23217]
[1721149366731,3.0,3471.2,3470.2,5.23217]
[1721149367035,2.88049,3471.7,3470.5,2.88142]
[1721149367247,2.88052,3471.6,3470.5,2.88142]
[1721149367538,2.87999,3472.3,3470.4,2.88144]
[1721149367539,2.88018,3472.0,3470.7,5.3252]
[1721149367739,2.88035,3471.8,3470.7,5.3252]
[1721149368242,2.87982,3472.5,3470.7,5.3252]
[1721149368243,3.0,3471.7,3470.7,5.3252]
[1721149368403,0.588026,3471.6,3470.7,5.3252]
[1721149368598,3.0,3471.6,3470.7,5.3252]
[1721149368799,2.88048,3471.7,3470.6,2.88134]
[1721149369005,3.0,3471.6,3470.6,2.88134]
[1721149370739,2.88043,3471.7,3470.4,2.88145]
[1721149370937,3.876069,3471.6,3470.4,2.88145]
[1721149371353,3.876069,3471.6,3470.6,2.88132]
[1721149372510,3.0,3471.6,3470.6,2.88132]
[1721149372861,3.0,3471.7,3470.6,2.88132]
[1721149373748,5.88044,3471.7,3470.6,2.88132]
[1721149373910,5.88044,3471.7,3470.4,2.88145]
[1721149374111,5.88044,3471.7,3470.5,2.88137]
[1721149374311,2.88074,3471.4,3470.2,2.3505]
[1721149374607,3.0,3471.3,3470.2,2.3505]
[1721149374928,3.0,3471.3,3470.3,2.88157]
[1721149375309,3.0,3471.3,3470.2,2.3505]
[1721149375629,3.0,3471.3,3470.2,5.23215]
[1721149375818,0.588074,3471.2,3470.2,5.23215]
[1721149376309,0.588074,3471.2,3470.3,2.88158]
[1721149376617,3.0,3471.3,3470.3,2.88158]
[1721149376817,5.88061,3471.5,3470.3,2.88158]
[1721149377149,2.8807,3471.4,3470.3,2.88158]
[1721149377310,3.0,3471.3,3470.3,2.88158]
[1721149377958,3.0,3471.3,3470.3,2.88151]
[1721149378110,5.88062,3471.5,3470.4,0.84042699]
[1721149378553,2.88068,3471.4,3470.4,0.84042699]
[1721149378921,3.0,3471.3,3470.4,3.72192699]
[1721149379137,3.0,3471.4,3470.7,2.88119]
[1721149379355,2.88034,3471.9,3470.7,2.88119]
[1721149379356,3.0,3471.8,3470.7,2.88119]
[1721149379655,3.876046,3471.8,3470.7,2.88119]
[1721149380318,6.756396,3471.8,3470.8,2.2855]
[1721149381149,3.876046,3471.8,3470.8,5.16668]
[1721149381358,0.876046,3471.8,3470.8,5.16668]
[1721149382150,3.756396,3471.8,3470.8,2.2855]
[1721149382451,5.88031,3471.9,3470.8,2.2855]
[1721149382452,3.76718187,3471.7,3470.8,2.2855]
[1721149382755,3.0,3471.8,3471.0,2.881]
[1721149382913,2.4499,3472.9,3470.8,5.3225]
[1721149383255,2.4499,3472.9,3471.7,2.88037]
[1721149383256,2.87944,3472.9,3471.7,2.88037]
[1721149383428,2.87941,3473.0,3471.7,2.88037]
[1721149384037,5.75847,3473.2,3471.8,2.88031]
[1721149384268,2.4499,3473.4,3472.1,2.88006]
[1721149384269,0.820837,3473.1,3472.1,2.88006]
[1721149384566,2.8792,3473.2,3472.1,2.88006]
[1721149384715,2.87904,3473.4,3472.1,2.88006]
[1721149384917,2.87911,3473.3,3472.1,2.88006]
[1721149385123,2.87924,3473.2,3472.1,3.7515494]
[1721149385430,0.575815,3473.3,3472.1,3.7515494]
[1721149385675,2.87908,3473.4,3472.3,2.87992]
[1721149385851,2.8791,3473.3,3472.3,2.87992]
[1721149386054,2.879,3473.5,3472.3,2.87992]
[1721149386574,2.87904,3473.4,3472.3,2.87992]
[1721149386951,3.0,3473.3,3472.3,2.87992]
[1721149387257,3.0,3473.3,3472.3,3.74250325]
[1721149387599,3.0,3473.7,3472.5,5.22579]
[1721149387806,2.87839,3474.2,3472.8,2.87951]
[1721149388075,2.87861,3473.9,3472.8,2.87951]
[1721149388236,0.287839,3474.1,3472.8,2.87951]
[1721149388442,0.287839,3474.1,3472.9,0.05758243]
[1721149388740,2.87861,3473.9,3472.8,2.87951]
[1721149388940,2.87861,3473.9,3472.7,2.87959]
[1721149389170,0.6045019,3473.8,3472.8,2.8795]
[1721149389551,3.6045019,3473.8,3472.8,2.8795]
[1721149389867,6.4831919,3473.8,3472.6,2.87967]
[1721149390544,6.4831919,3473.8,3472.7,2.8796]
[1721149390751,6.4831919,3473.8,3472.8,0.59364567]
[1721149391142,2.87909,3473.4,3472.5,2.3461]
[1721149391491,5.87912,3473.3,3472.0,5.34648]
[1721149391783,2.87888,3473.6,3472.3,2.87991]
[1721149391935,2.87909,3473.4,3472.3,2.87991]
[1721149392141,5.87912,3473.3,3472.1,2.444]
[1721149392334,2.87912,3473.3,3472.1,5.32409]
[1721149392595,5.87926,3473.2,3472.1,2.444]
[1721149392886,2.87936,3473.0,3472.0,2.4663]
[1721149393039,5.87926,3473.2,3472.0,2.4663]
[1721149393040,3.467246,3473.1,3472.0,2.4663]
[1721149393251,5.87936,3473.0,3472.0,2.4663]
[1721149393457,2.87957,3472.8,3472.0,2.4663]
[1721149393756,3.0,3472.7,3472.0,2.4663]
[1721149393994,6.1840249,3472.7,3472.0,2.4663]
[1721149396703,2.87975,3472.6,3471.5,2.3237]
[1721149397060,3.0,3472.5,3471.5,5.20427]
[1721149398091,3.0,3472.5,3471.5,2.3237]
[1721149398264,0.61841649,3472.4,3471.5,2.3237]
[1721149399571,3.49826649,3472.4,3471.5,2.3237]
[1721149399768,2.8801,3472.1,3471.1,2.4795]
[1721149399977,5.88019,3472.0,3471.1,2.4795]
[1721149400284,2.88035,3471.8,3471.1,2.4795]
[1721149400727,3.0,3471.7,3471.1,2.4795]
[1721149401079,2.88059,3471.6,3470.7,2.366]
[1721149401420,3.0,3471.7,3470.3,7.37]
[1721149401629,0.55,3471.6,3470.2,2.2673]